[Event "Irish International Open 2019"]
[Site "Dublin"]
[Date "2019.04.18"]
[Round "2.4"]
[White "Jovanic, Ognjen"]
[Black "Melaugh, Gavin"]
[Result "1-0"]
[ECO "A96"]
[WhiteElo "2515"]
[BlackElo "2109"]
[Annotator "ChessBase"]
[PlyCount "107"]
[EventDate "2019.02.28"]
[EventType "swiss"]
[EventCountry "IRL"]
[SourceTitle "playchess.com"]
[Source "ChessBase"]
[SourceQuality "1"]
[TimeControl "5400+30"]

1. d4 {[%emt 0:00:00]} e6 {[%emt 0:00:00]} 2. c4 {[%emt 0:00:00]} f5 {[%emt 0:00:07]} 3. g3 {[%emt 0:00:14]} Nf6 {[%emt 0:00:06]} 4. Bg2 {[%emt 0:00:18]} Be7 {[%emt 0:00:14]} 5. Nf3 {[%emt 0:00:13]} O-O {[%emt 0:00:10]} 6. O-O {[%emt 0:00:27]} d6 {[%emt 0:00:28]} 7. b4 {[%emt 0:00:43]} Qe8 {[%emt 0:06:44]} 8. Bb2 {[%emt 0:06:16]} Qh5 {[%emt 0:02:30]} 9. Nbd2 {[%emt 0:02:33]} Ne4 {[%emt 0:02:48]} 10. e3 {[%emt 0:03:34]} Nd7 {[%emt 0:03:40]} 11. Ne1 {[%emt 0:07:55]} Qxd1 {[%emt 0:01:32]} 12. Rxd1 {[%emt 0:00:03]} d5 {[%emt 0:07:31]} 13. cxd5 {[%emt 0:03:40]} exd5 {[%emt 0:02:53]} 14. Nd3 {[%emt 0:00:25]} c6 {[%emt 0:03:09]} 15. f3 {[%emt 0:06:59]} Nxd2 {[%emt 0:01:41]} 16. Rxd2 {[%emt 0:00:01]} Nb6 {[%emt 0:00:24]} 17. Bc3 {[%emt 0:02:03]} Nc4 {[%emt 0:15:24]} 18. Re2 {[%emt 0:00:03]} b6 {[%emt 0:00:47]} 19. a4 {[%emt 0:06:21]} Ba6 {[%emt 0:01:38]} 20. Rd1 {[%emt 0:00:57]} Rae8 {[%emt 0:05:59]} 21. Kf2 {[%emt 0:04:16]} Bg5 {[%emt 0:06:28]} 22. f4 {[%emt 0:00:20]} Bd8 {[%emt 0:01:40]} 23. b5 {[%emt 0:02:12]} cxb5 {[%emt 0:03:15]} 24. Bxd5+ {[%emt 0:00:27]} Kh8 {[%emt 0:00:01]} 25. Nb4 {[%emt 0:03:09]} Bc8 {[%emt 0:01:18]} 26. axb5 {[%emt 0:00:30]} Nd6 {[%emt 0:00:30]} 27. Bc6 {[%emt 0:03:51]} Ne4+ {[%emt 0:16:00]} 28. Bxe4 {[%emt 0:00:03]} fxe4 {[%emt 0:00:19]} 29. Ra2 {[%emt 0:03:06]} g5 {[%emt 0:04:33]} 30. d5+ {[%emt 0:09:56]} Bf6 {[%emt 0:00:31]} 31. Bxf6+ {[%emt 0:00:07]} Rxf6 {[%emt 0:00:02]} 32. Nc6 {[%emt 0:04:09]} Bg4 {[%emt 0:02:10]} 33. Re1 {[%emt 0:00:48]} Rh6 {[%emt 0:00:40]} 34. Kg1 {[%emt 0:00:13]} gxf4 {[%emt 0:00:21]} 35. exf4 {[%emt 0:00:17]} Rd6 {[%emt 0:02:41]} 36. Ne5 {[%emt 0:00:23]} Bh5 {[%emt 0:00:21]} 37. g4 {[%emt 0:09:43]} Bg6 {[%emt 0:00:07]} 38. Rd2 {[%emt 0:01:07]} Kg7 {[%emt 0:04:53]} 39. Kf2 {[%emt 0:00:15]} Kf6 {[%emt 0:02:38]} 40. Rc1 {[%emt 0:02:14]} Red8 {[%emt 0:01:41]} 41. Nxg6 {[%emt 0:01:15]} hxg6 {[%emt 0:00:09]} 42. Rc6 {[%emt 0:00:11]} Ke7 {[%emt 0:01:19]} 43. Ke3 {[%emt 0:04:08]} Rxd5 {[%emt 0:01:07]} 44. Rxd5 {[%emt 0:00:07]} Rxd5 {[%emt 0:00:02]} 45. Rxg6 {[%emt 0:00:07]} Rxb5 {[%emt 0:00:06]} 46. Rg7+ {[%emt 0:01:05]} Kf6 {[%emt 0:00:52]} 47. Rxa7 {[%emt 0:00:11]} Rb4 {[%emt 0:00:36]} 48. g5+ {[%emt 0:02:08]} Kg6 {[%emt 0:00:57]} 49. Re7 {[%emt 0:00:36]} b5 {[%emt 0:00:53]} 50. Re6+ {[%emt 0:00:42]} Kg7 {[%emt 0:00:31]} 51. f5 {[%emt 0:00:18]} Rb2 {[%emt 0:00:19]} 52. Re7+ {[%emt 0:01:08]} Kf8 {[%emt 0:00:28]} 53. f6 {[%emt 0:01:16]} Rxh2 {[%emt 0:00:17]} 54. g6 {[%emt 0:00:14]} 1-0

[Event "Irish International Open 2019"]
[Site "Dublin"]
[Date "2019.04.18"]
[Round "2.5"]
[White "McMorrow, John"]
[Black "Ruck, Robert"]
[Result "0-1"]
[ECO "B13"]
[WhiteElo "2058"]
[BlackElo "2522"]
[Annotator "ChessBase"]
[PlyCount "86"]
[EventDate "2019.02.28"]
[EventType "swiss"]
[EventCountry "IRL"]
[SourceTitle "playchess.com"]
[Source "ChessBase"]
[SourceQuality "1"]
[TimeControl "5400+30"]

1. e4 {[%emt 0:00:00]} c6 {[%emt 0:00:00]} 2. d4 {[%emt 0:00:00]} d5 {[%emt 0:00:00]} 3. exd5 {[%emt 0:00:00]} cxd5 {[%emt 0:00:00]} 4. Bd3 {[%emt 0:00:05]} Nc6 {[%emt 0:00:01]} 5. c3 {[%emt 0:00:09]} Qc7 {[%emt 0:00:45]} 6. Nf3 {[%emt 0:00:12]} Bg4 {[%emt 0:00:12]} 7. O-O {[%emt 0:01:29]} e6 {[%emt 0:00:07]} 8. h3 {[%emt 0:00:27]} Bh5 {[%emt 0:00:06]} 9. Nbd2 {[%emt 0:01:00]} Bd6 {[%emt 0:00:46]} 10. Re1 {[%emt 0:00:57]} Nge7 {[%emt 0:02:12]} 11. a4 {[%emt 0:06:32]} Rc8 {[%emt 0:02:27]} 12. b4 {[%emt 0:04:14]} Bg6 {[%emt 0:00:28]} 13. Nb3 {[%emt 0:01:45]} O-O {[%emt 0:02:07]} 14. a5 {[%emt 0:05:58]} Nb8 {[%emt 0:06:01]} 15. Nc5 {[%emt 0:14:29]} b6 {[%emt 0:05:48]} 16. axb6 {[%emt 0:00:56]} axb6 {[%emt 0:00:04]} 17. Na4 {[%emt 0:00:53]} Bxd3 {[%emt 0:04:34]} 18. Qxd3 {[%emt 0:00:09]} Nd7 {[%emt 0:00:04]} 19. Bd2 {[%emt 0:04:55]} Ng6 {[%emt 0:07:52]} 20. Ng5 {[%emt 0:08:50]} Rfe8 {[%emt 0:02:14]} 21. g3 {[%emt 0:08:12]} Nf6 {[%emt 0:00:32]} 22. f4 {[%emt 0:01:59]} Nf8 {[%emt 0:01:48]} 23. Re2 {[%emt 0:10:30]} h6 {[%emt 0:01:14]} 24. Nf3 {[%emt 0:02:59]} Ra8 {[%emt 0:05:36]} 25. Be1 {[%emt 0:05:47]} Ra7 {[%emt 0:00:41]} 26. Rea2 {[%emt 0:01:12]} Rea8 {[%emt 0:01:01]} 27. Qb1 {[%emt 0:07:05]} Ne4 {[%emt 0:05:43]} 28. Qb3 {[%emt 0:00:40]} g5 {[%emt 0:15:50]} 29. fxg5 {[%emt 0:04:48]} hxg5 {[%emt 0:00:11]} 30. Nb2 {[%emt 0:06:11]} Rxa2 {[%emt 0:01:35]} 31. Rxa2 {[%emt 0:00:02]} Rxa2 {[%emt 0:00:11]} 32. Qxa2 {[%emt 0:00:02]} Bxg3 {[%emt 0:01:46]} 33. Nd3 {[%emt 0:01:15]} Bxe1 {[%emt 0:00:12]} 34. Ndxe1 {[%emt 0:00:23]} Qxc3 {[%emt 0:00:24]} 35. Qg2 {[%emt 0:00:25]} Ng6 {[%emt 0:00:43]} 36. b5 {[%emt 0:01:32]} Qe3+ {[%emt 0:02:44]} 37. Kh2 {[%emt 0:01:04]} Nf4 {[%emt 0:02:09]} 38. Qf1 {[%emt 0:00:33]} Kg7 {[%emt 0:01:44]} 39. Nc2 {[%emt 0:00:32]} Qc3 {[%emt 0:00:12]} 40. Nce1 {[%emt 0:00:54]} Qb2+ {[%emt 0:00:36]} 41. Ng2 {[%emt 0:00:18]} Qxg2+ {[%emt 0:00:23]} 42. Qxg2 {[%emt 0:00:03]} Nxg2 {[%emt 0:00:06]} 43. Kxg2 {[%emt 0:00:02]} f6 {[%emt 0:00:05]} 0-1

[Event "Irish International Open 2019"]
[Site "Dublin"]
[Date "2019.04.18"]
[Round "2.6"]
[White "Strikovic, Aleksa"]
[Black "Doyle, Hugh"]
[Result "1-0"]
[ECO "D94"]
[WhiteElo "2493"]
[BlackElo "2042"]
[Annotator "ChessBase"]
[PlyCount "93"]
[EventDate "2019.02.28"]
[EventType "swiss"]
[EventCountry "IRL"]
[SourceTitle "playchess.com"]
[Source "ChessBase"]
[SourceQuality "1"]
[TimeControl "5400+30"]

1. c4 {[%emt 0:00:05]} c5 {[%emt 0:00:13]} 2. Nc3 {[%emt 0:00:15]} g6 {[%emt 0:00:36]} 3. Nf3 {[%emt 0:01:36]} Bg7 {[%emt 0:00:23]} 4. e3 {[%emt 0:00:27]} Nf6 {[%emt 0:00:52]} 5. d4 {[%emt 0:01:13]} O-O {[%emt 0:00:08]} 6. Be2 {[%emt 0:01:48]} d5 {[%emt 0:04:55]} 7. dxc5 {[%emt 0:11:16]} Qa5 {[%emt 0:13:17]} 8. cxd5 {[%emt 0:02:40]} Nxd5 {[%emt 0:05:40]} 9. Qxd5 {[%emt 0:03:47]} Bxc3+ {[%emt 0:02:24]} 10. bxc3 {[%emt 0:00:31]} Qxc3+ {[%emt 0:00:34]} 11. Qd2 {[%emt 0:00:06]} Qxa1 {[%emt 0:00:23]} 12. O-O {[%emt 0:00:06]} Qg7 {[%emt 0:10:04]} 13. Bc4 {[%emt 0:00:42]} Kh8 {[%emt 0:03:02]} 14. Bb2 {[%emt 0:01:35]} f6 {[%emt 0:00:08]} 15. Ng5 {[%emt 0:01:12]} Nc6 {[%emt 0:02:34]} 16. f4 {[%emt 0:00:09]} h6 {[%emt 0:07:48]} 17. Nf3 {[%emt 0:13:54]} Bf5 {[%emt 0:04:25]} 18. Qe1 {[%emt 0:00:11]} Nd8 {[%emt 0:02:20]} 19. e4 {[%emt 0:05:33]} Be6 {[%emt 0:01:13]} 20. Bd5 {[%emt 0:00:06]} Rc8 {[%emt 0:13:21]} 21. Qe3 {[%emt 0:02:29]} Kh7 {[%emt 0:06:06]} 22. Nh4 {[%emt 0:06:29]} Bf7 {[%emt 0:07:54]} 23. Rd1 {[%emt 0:05:02]} e6 {[%emt 0:02:29]} 24. Bb3 {[%emt 0:00:05]} Rc7 {[%emt 0:01:20]} 25. Nf3 {[%emt 0:03:20]} Nc6 {[%emt 0:00:47]} 26. e5 {[%emt 0:00:04]} f5 {[%emt 0:00:18]} 27. Rd6 {[%emt 0:02:09]} Re8 {[%emt 0:00:09]} 28. Bc3 {[%emt 0:02:01]} Qg8 {[%emt 0:00:39]} 29. Qf2 {[%emt 0:01:39]} Qg7 {[%emt 0:02:06]} 30. h3 {[%emt 0:01:17]} Kg8 {[%emt 0:01:21]} 31. Qe3 {[%emt 0:01:11]} Qf8 {[%emt 0:02:00]} 32. Be1 {[%emt 0:00:42]} Nb8 {[%emt 0:03:47]} 33. Ba5 {[%emt 0:03:20]} Rcc8 {[%emt 0:00:35]} 34. Nd4 {[%emt 0:01:02]} Nc6 {[%emt 0:01:40]} 35. Nxc6 {[%emt 0:03:26]} Rxc6 {[%emt 0:00:20]} 36. Ba4 {[%emt 0:00:05]} Rec8 {[%emt 0:00:21]} 37. Bxc6 {[%emt 0:00:41]} Rxc6 {[%emt 0:00:27]} 38. Be1 {[%emt 0:05:41]} Be8 {[%emt 0:01:17]} 39. Bh4 {[%emt 0:00:31]} Rxd6 {[%emt 0:00:14]} 40. exd6 {[%emt 0:00:31]} Qf7 {[%emt 0:00:42]} 41. Be1 {[%emt 0:00:10]} Bc6 {[%emt 0:00:25]} 42. Bc3 {[%emt 0:00:05]} Kf8 {[%emt 0:00:35]} 43. Qe5 {[%emt 0:00:24]} Ke8 {[%emt 0:01:05]} 44. Qh8+ {[%emt 0:00:06]} Qf8 {[%emt 0:00:24]} 45. Qh7 {[%emt 0:00:09]} h5 {[%emt 0:00:26]} 46. Qc7 {[%emt 0:00:57]} Bd7 {[%emt 0:00:21]} 47. Qxb7 {[%emt 0:22:42]} 1-0

[Event "Irish International Open 2019"]
[Site "Dublin"]
[Date "2019.04.18"]
[Round "2.7"]
[White "Kersten, Julian"]
[Black "Hovhannisyan, Mher"]
[Result "0-1"]
[ECO "C09"]
[WhiteElo "1996"]
[BlackElo "2462"]
[Annotator "ChessBase"]
[PlyCount "84"]
[EventDate "2019.02.28"]
[EventType "swiss"]
[EventCountry "IRL"]
[SourceTitle "playchess.com"]
[Source "ChessBase"]
[SourceQuality "1"]
[TimeControl "5400+30"]

1. e4 {[%emt 0:00:00]} e6 {[%emt 0:00:51]} 2. d4 {[%emt 0:00:04]} d5 {[%emt 0:00:04]} 3. Nd2 {[%emt 0:00:11]} c5 {[%emt 0:02:14]} 4. Ngf3 {[%emt 0:04:27]} Nc6 {[%emt 0:00:50]} 5. exd5 {[%emt 0:00:29]} exd5 {[%emt 0:00:27]} 6. dxc5 {[%emt 0:02:34]} Bxc5 {[%emt 0:00:06]} 7. Bd3 {[%emt 0:00:16]} Nf6 {[%emt 0:00:09]} 8. O-O {[%emt 0:00:33]} O-O {[%emt 0:00:05]} 9. Nb3 {[%emt 0:01:34]} Bb6 {[%emt 0:00:29]} 10. Bg5 {[%emt 0:05:09]} Bg4 {[%emt 0:00:53]} 11. Be2 {[%emt 0:05:21]} Qd6 {[%emt 0:04:47]} 12. Bh4 {[%emt 0:02:01]} Ne4 {[%emt 0:02:07]} 13. Nfd2 {[%emt 0:09:08]} Bxe2 {[%emt 0:07:58]} 14. Qxe2 {[%emt 0:00:08]} Rfe8 {[%emt 0:01:35]} 15. Nxe4 {[%emt 0:05:27]} Rxe4 {[%emt 0:04:24]} 16. Qh5 {[%emt 0:00:11]} Qg6 {[%emt 0:06:38]} 17. Qxg6 {[%emt 0:01:12]} hxg6 {[%emt 0:00:03]} 18. Bg5 {[%emt 0:01:49]} Re2 {[%emt 0:09:20]} 19. Bd2 {[%emt 0:01:10]} Nd4 {[%emt 0:06:59]} 20. Nxd4 {[%emt 0:04:33]} Rxd2 {[%emt 0:03:29]} 21. c3 {[%emt 0:00:43]} Rxb2 {[%emt 0:00:17]} 22. Rfb1 {[%emt 0:00:38]} Rxb1+ {[%emt 0:04:19]} 23. Rxb1 {[%emt 0:00:21]} Rc8 {[%emt 0:00:03]} 24. Ne2 {[%emt 0:01:12]} Rc4 {[%emt 0:03:28]} 25. Rd1 {[%emt 0:01:45]} Ra4 {[%emt 0:00:13]} 26. Rd2 {[%emt 0:00:22]} Kf8 {[%emt 0:00:33]} 27. g3 {[%emt 0:00:49]} g5 {[%emt 0:02:38]} 28. Nc1 {[%emt 0:10:23]} d4 {[%emt 0:00:22]} 29. cxd4 {[%emt 0:00:10]} Rxd4 {[%emt 0:00:21]} 30. Rxd4 {[%emt 0:02:28]} Bxd4 {[%emt 0:00:05]} 31. Kg2 {[%emt 0:00:26]} Ke7 {[%emt 0:00:32]} 32. Kf3 {[%emt 0:00:30]} Ke6 {[%emt 0:00:24]} 33. Ke2 {[%emt 0:00:58]} Kd5 {[%emt 0:00:41]} 34. f3 {[%emt 0:00:59]} Kc4 {[%emt 0:00:28]} 35. Kd2 {[%emt 0:03:12]} b5 {[%emt 0:00:46]} 36. Kc2 {[%emt 0:01:42]} a5 {[%emt 0:00:23]} 37. Nb3 {[%emt 0:01:28]} Bc3 {[%emt 0:01:33]} 38. Nc1 {[%emt 0:02:47]} b4 {[%emt 0:02:13]} 39. Nb3 {[%emt 0:01:00]} a4 {[%emt 0:01:05]} 40. Nc1 {[%emt 0:00:13]} Bd4 {[%emt 0:00:33]} 41. h3 {[%emt 0:01:29]} Be3 {[%emt 0:00:57]} 42. Ne2 {[%emt 0:00:25]} b3+ {[%emt 0:00:28]} 0-1

[Event "Irish International Open 2019"]
[Site "Dublin"]
[Date "2019.04.18"]
[Round "2.8"]
[White "Larino Nieto, David"]
[Black "Reprun, Nadejda"]
[Result "1-0"]
[ECO "A06"]
[WhiteElo "2434"]
[BlackElo "1995"]
[Annotator "ChessBase"]
[PlyCount "65"]
[EventDate "2019.02.28"]
[EventType "swiss"]
[EventCountry "IRL"]
[SourceTitle "playchess.com"]
[Source "ChessBase"]
[SourceQuality "1"]
[TimeControl "5400+30"]

1. Nf3 {[%emt 0:07:03]} d5 {[%emt 0:00:27]} 2. b3 {[%emt 0:00:01]} Bg4 {[%emt 0:02:03]} 3. Bb2 {[%emt 0:00:03]} e6 {[%emt 0:00:41]} 4. g3 {[%emt 0:00:04]} Nd7 {[%emt 0:03:14]} 5. Bg2 {[%emt 0:00:02]} Ngf6 {[%emt 0:00:04]} 6. d3 {[%emt 0:00:10]} Be7 {[%emt 0:01:10]} 7. h3 {[%emt 0:00:45]} Bxf3 {[%emt 0:01:04]} 8. exf3 {[%emt 0:00:14]} O-O {[%emt 0:02:04]} 9. f4 {[%emt 0:00:03]} Bd6 {[%emt 0:02:46]} 10. O-O {[%emt 0:01:39]} c6 {[%emt 0:05:00]} 11. Re1 {[%emt 0:00:29]} Qc7 {[%emt 0:00:09]} 12. Nd2 {[%emt 0:00:49]} Rfe8 {[%emt 0:03:55]} 13. d4 {[%emt 0:07:48]} b5 {[%emt 0:03:17]} 14. c4 {[%emt 0:00:59]} bxc4 {[%emt 0:02:51]} 15. bxc4 {[%emt 0:00:01]} Rab8 {[%emt 0:01:50]} 16. Qc2 {[%emt 0:01:15]} Bb4 {[%emt 0:05:52]} 17. c5 {[%emt 0:00:27]} Rb7 {[%emt 0:03:35]} 18. Bc1 {[%emt 0:04:20]} Reb8 {[%emt 0:05:48]} 19. Rd1 {[%emt 0:00:22]} Bxd2 {[%emt 0:00:37]} 20. Bxd2 {[%emt 0:00:02]} Rb2 {[%emt 0:02:01]} 21. Qa4 {[%emt 0:01:19]} Ne4 {[%emt 0:02:15]} 22. Be1 {[%emt 0:00:02]} Qb7 {[%emt 0:08:30]} 23. Bf1 {[%emt 0:00:45]} a5 {[%emt 0:03:38]} 24. f3 {[%emt 0:01:18]} Nef6 {[%emt 0:05:47]} 25. Bc3 {[%emt 0:00:23]} Nh5 {[%emt 0:01:22]} 26. Bxb2 {[%emt 0:00:23]} Qxb2 {[%emt 0:00:03]} 27. Rab1 {[%emt 0:00:13]} Qc3 {[%emt 0:00:41]} 28. Rxb8+ {[%emt 0:00:28]} Nxb8 {[%emt 0:00:01]} 29. Qb3 {[%emt 0:00:11]} Qxb3 {[%emt 0:00:18]} 30. axb3 {[%emt 0:00:02]} Nxg3 {[%emt 0:00:20]} 31. Bd3 {[%emt 0:00:46]} Nh5 {[%emt 0:00:47]} 32. Ra1 {[%emt 0:00:08]} Nxf4 {[%emt 0:00:43]} 33. Bf1 {[%emt 0:00:03]} 1-0

[Event "Irish International Open 2019"]
[Site "Dublin"]
[Date "2019.04.18"]
[Round "2.9"]
[White "Fox, Anthony"]
[Black "Thorfinnsson, Bjorn"]
[Result "0-1"]
[ECO "C46"]
[WhiteElo "2031"]
[BlackElo "2399"]
[Annotator "NA"]
[PlyCount "72"]
[EventDate "2019.02.28"]
[EventType "swiss"]
[EventCountry "IRL"]
[SourceTitle "playchess.com"]
[Source "ChessBase"]
[SourceQuality "1"]
[TimeControl "5400+30"]

1. e4 {[%emt 1:30:30]} e5 {[%emt 0:01:12]} 2. Nf3 {[%emt 0:00:00]} Nc6 {[%emt 0:00:08]} 3. Nc3 {[%emt 0:00:00]} g6 {[%emt 0:00:52]} 4. d4 {[%emt 0:00:00]} exd4 {[%emt 0:00:09]} 5. Nxd4 {[%emt 0:00:00]} Bg7 {[%emt 0:00:07]} 6. Be3 {[%emt 0:00:00]} Nge7 {[%emt 0:00:23]} 7. Qd2 {[%emt 0:00:00]} d6 {[%emt 0:01:10]} 8. O-O-O {[%emt 0:00:00]} a6 {[%emt 0:08:45]} 9. Nxc6 {[%emt 0:00:00]} Nxc6 {[%emt 0:05:36]} 10. Bh6 {[%emt 0:00:00]} O-O {[%emt 0:00:10]} (10... Bxh6 $142 11. Qxh6 Bg4) 11. Bxg7 {[%emt 0:00:00]} Kxg7 {[%emt 0:00:08]} 12. h4 {[%emt 0:00:00]} h5 {[%emt 0:00:23]} 13. f3 {[%emt 0:00:00]} Be6 {[%emt 0:05:03]} 14. Kb1 {[%emt 0:00:00]} Rh8 {[%emt 0:07:56]} 15. Be2 {[%emt 0:00:00]} Qf6 {[%emt 0:09:16]} 16. f4 {[%emt 0:00:00]} Rad8 {[%emt 0:05:33]} 17. Bf3 {[%emt 0:00:00]} Rde8 $16 {[%emt 0:09:30]} 18. Ne2 {[%emt 0:00:00]} Kf8 {[%emt 0:06:07]} 19. Ng3 {[%emt 0:00:00]} Bc8 {[%emt 0:01:52]} 20. Ne2 {[%emt 0:00:00]} Re7 {[%emt 0:00:41]} 21. Nc3 {[%emt 0:00:00]} Be6 {[%emt 0:00:05]} 22. Nd5 {[%emt 0:00:00]} Bxd5 {[%emt 0:00:08]} 23. exd5 {[%emt 0:00:00]} Nb8 {[%emt 0:00:08]} 24. g3 {[%emt 0:00:00]} Kg7 {[%emt 0:00:30]} 25. Rhe1 {[%emt 0:00:00]} Rhe8 {[%emt 0:00:13]} 26. Rxe7 {[%emt 0:00:00]} Qxe7 {[%emt 0:03:08]} 27. Qc3+ {[%emt 0:00:00]} Kg8 {[%emt 0:00:12]} 28. b3 {[%emt 0:00:00]} Qe3 {[%emt 0:01:48]} 29. Kb2 {[%emt 0:00:00]} Nd7 {[%emt 0:03:34]} 30. Rd3 {[%emt 0:00:00]} Qg1 {[%emt 0:00:58]} 31. Qxc7 {[%emt 0:02:14]} Nc5 {[%emt 0:00:17]} 32. Rd1 {[%emt 0:05:34]} Qxg3 {[%emt 0:00:23]} 33. Bh1 {[%emt 0:00:50]} Qxf4 {[%emt 0:00:11]} 34. a3 {[%emt 0:02:29]} Re2 {[%emt 0:01:43]} 35. Qd8+ {[%emt 0:01:28]} Kg7 {[%emt 0:00:20]} 36. Qa5 {[%emt 0:00:59]} Qxh4 {[%emt 0:00:37]} 0-1

[Event "Irish International Open 2019"]
[Site "Dublin"]
[Date "2019.04.18"]
[Round "2.10"]
[White "Jackson, James P"]
[Black "Flynn, Jacob"]
[Result "1-0"]
[ECO "B01"]
[WhiteElo "2388"]
[BlackElo "2011"]
[Annotator "NA"]
[PlyCount "43"]
[EventDate "2019.02.28"]
[EventType "swiss"]
[EventCountry "IRL"]
[SourceTitle "playchess.com"]
[Source "ChessBase"]
[SourceQuality "1"]
[TimeControl "5400+30"]

1. e4 {[%emt 0:00:00]} d5 {[%emt 0:00:00]} 2. exd5 {[%emt 0:00:00]} Qxd5 {[%emt 0:00:00]} 3. Nc3 {[%emt 0:00:00]} Qa5 {[%emt 0:00:00]} 4. d4 {[%emt 0:00:00]} Nf6 {[%emt 0:00:00]} 5. Bc4 {[%emt 0:00:00]} c6 {[%emt 0:00:08]} 6. Bd2 {[%emt 0:00:48]} Bf5 {[%emt 0:00:18]} 7. Nf3 {[%emt 0:00:22]} e6 {[%emt 0:00:47]} 8. Nd5 {[%emt 0:00:41]} Qd8 {[%emt 0:00:08]} 9. Nxf6+ {[%emt 0:00:06]} gxf6 {[%emt 0:00:05]} 10. O-O {[%emt 0:01:49]} Bd6 {[%emt 0:02:37]} 11. Re1 {[%emt 0:02:30]} Nd7 {[%emt 0:04:59]} 12. Nh4 {[%emt 0:02:08]} Bg6 {[%emt 0:01:30] [#]} 13. Bxe6 $1 {[%emt 0:38:54]} fxe6 {[%emt 0:02:13]} 14. Rxe6+ {[%emt 0:00:07]} Be7 {[%emt 0:00:09]} 15. Qe2 {[%emt 0:00:04]} Kf7 $1 {[%emt 0:14:32]} 16. Re1 {[%emt 0:10:07]} Bf8 {[%emt 0:16:12]} 17. c4 {[%emt 0:04:03]} (17. f4 $142) 17... Nb6 $18 {[%emt 0:11:29]} (17... Rg8 $16 18. Qg4 Nb6) 18. Bc3 {[%emt 0:07:41]} Na4 {[%emt 0:02:05]} 19. f4 {[%emt 0:00:26]} Nxc3 {[%emt 0:01:29]} 20. bxc3 {[%emt 0:00:02]} f5 {[%emt 0:00:46]} 21. Rxg6 {[%emt 0:00:09]} Qe7 {[%emt 0:03:03]} 22. Rg7+ {[%emt 0:00:56]} 1-0

[Event "Irish International Open 2019"]
[Site "Dublin"]
[Date "2019.04.18"]
[Round "2.11"]
[White "Longson, Alexander"]
[Black "Schmitz, Andreas Arnold"]
[Result "1-0"]
[ECO "D20"]
[WhiteElo "2318"]
[BlackElo "2003"]
[Annotator "NA"]
[PlyCount "121"]
[EventDate "2019.02.28"]
[EventType "swiss"]
[EventCountry "IRL"]
[SourceTitle "playchess.com"]
[Source "ChessBase"]
[SourceQuality "1"]
[TimeControl "5400+30"]

1. d4 {[%emt 0:00:00]} d5 {[%emt 0:00:00]} 2. c4 {[%emt 0:00:00]} dxc4 {[%emt 0:00:00]} 3. e3 {[%emt 0:00:02]} e5 {[%emt 0:00:26]} 4. Bxc4 {[%emt 0:00:15]} exd4 {[%emt 0:00:25]} 5. exd4 {[%emt 0:00:06]} Nf6 {[%emt 0:01:07]} 6. Qb3 {[%emt 0:00:30]} Qe7+ {[%emt 0:01:02]} 7. Ne2 {[%emt 0:00:09] D20: Queen's Gambit Accepted: 3 e3 and 3 e4} (7. Be3 Qb4+ 8. Nc3 Qxb3 9. Bxb3 a6 10. Nf3 Bd6 11. Bg5 Nbd7 12. O-O-O O-O 13. Rhe1 h6 14. Bh4 g5 {1-0 (49) Vallejo Pons,F (2695)-Usmanov,V (2450) St Petersburg 2018}) 7... Qb4+ {[%emt 0:00:23]} 8. Nbc3 {[%emt 0:00:08]} Qxb3 {[%emt 0:00:44]} 9. Bxb3 {[%emt 0:00:08]} Bb4 {[%emt 0:06:06]} 10. O-O {[%emt 0:04:30]} Bg4 {[%emt 0:02:22]} 11. Nf4 $146 {[%emt 0:09:48]} ({Predecessor:} 11. Bf4 c6 12. h3 Bxe2 13. Rfe1 O-O 14. Rxe2 Rd8 {1-0 (26) Prigodin,R (1975)-Jonkus,L (1889) Kaunas 2016}) 11... O-O {[%emt 0:01:58]} 12. f3 {[%emt 0:01:56]} Bd7 {[%emt 0:01:41]} 13. Nd3 {[%emt 0:18:12]} a5 {[%emt 0:10:37]} 14. Bg5 {[%emt 0:06:57]} Bxc3 {[%emt 0:01:31]} 15. bxc3 {[%emt 0:05:48]} a4 {[%emt 0:02:59]} 16. Bc2 {[%emt 0:05:54]} Nd5 {[%emt 0:01:32]} 17. Bd2 {[%emt 0:02:59]} b5 {[%emt 0:04:46]} 18. Rab1 {[%emt 0:08:01]} Nb6 {[%emt 0:10:00]} 19. Nc5 $14 {[%emt 0:06:17]} Bc6 {[%emt 0:01:23]} 20. Bd3 {[%emt 0:06:23]} Bd5 {[%emt 0:03:31]} 21. Rxb5 {[%emt 0:04:37]} Bxa2 {[%emt 0:02:13]} 22. Ra1 {[%emt 0:01:39]} Bd5 {[%emt 0:06:30]} 23. Bf4 {[%emt 0:02:58]} Bc6 {[%emt 0:00:39]} 24. Rb2 {[%emt 0:00:46]} Nd5 {[%emt 0:01:19]} 25. Bd2 {[%emt 0:00:04]} Nd7 {[%emt 0:01:02]} 26. Nxd7 {[%emt 0:04:18]} Bxd7 {[%emt 0:00:06]} 27. Be4 {[%emt 0:03:08]} c6 {[%emt 0:00:47]} 28. Bc2 {[%emt 0:02:07]} c5 {[%emt 0:03:20]} 29. Be4 {[%emt 0:01:05]} Bc6 {[%emt 0:01:20]} 30. c4 {[%emt 0:00:17]} Ne7 {[%emt 0:03:32]} 31. d5 {[%emt 0:00:06]} f5 {[%emt 0:00:12]} 32. Bc2 {[%emt 0:02:02]} Be8 {[%emt 0:02:59]} 33. Be3 {[%emt 0:01:56]} Ra5 {[%emt 0:01:39]} 34. Rba2 {[%emt 0:01:27]} Nc8 {[%emt 0:00:48]} 35. Bxa4 {[%emt 0:00:57]} Bxa4 {[%emt 0:00:10]} 36. Rxa4 {[%emt 0:00:06]} Rxa4 {[%emt 0:00:06]} 37. Rxa4 {[%emt 0:00:03]} Nb6 {[%emt 0:00:22]} 38. Ra7 {[%emt 0:01:56]} Rc8 {[%emt 0:01:25]} 39. Bd2 {[%emt 0:01:17]} Nxc4 {[%emt 0:05:30]} 40. Bc3 {[%emt 0:00:04]} Rd8 {[%emt 0:01:37]} 41. Rxg7+ {[%emt 0:00:28]} Kf8 {[%emt 0:00:04]} 42. Rxh7 {[%emt 0:00:17]} Rxd5 {[%emt 0:00:05]} 43. Rc7 {[%emt 0:01:04]} Ke8 {[%emt 0:02:58]} 44. h4 {[%emt 0:00:28]} f4 {[%emt 0:00:20]} 45. Bf6 {[%emt 0:00:41]} Ne3 {[%emt 0:04:21]} 46. Bg5 {[%emt 0:00:20]} Rd1+ {[%emt 0:01:58]} 47. Kh2 {[%emt 0:00:02]} Rd2 {[%emt 0:06:26]} 48. Bxf4 {[%emt 0:01:44]} Rxg2+ {[%emt 0:00:10]} 49. Kh3 {[%emt 0:00:00]} Re2 {[%emt 0:01:00]} 50. Rxc5 {[%emt 0:00:00]} Ng2 {[%emt 0:02:09]} 51. Bg3 {[%emt 0:00:50]} Kf7 {[%emt 0:00:33]} 52. Kg4 {[%emt 0:00:38]} Ne3+ {[%emt 0:00:24]} 53. Kg5 {[%emt 0:00:18]} Rg2 {[%emt 0:00:21]} 54. Kf4 {[%emt 0:00:38]} Nf1 {[%emt 0:02:45]} 55. Be1 {[%emt 0:00:11]} Nh2 {[%emt 0:01:41]} 56. Rc1 {[%emt 0:00:50]} Rg1 {[%emt 0:01:44]} 57. Bd2 {[%emt 0:00:16]} Rg2 {[%emt 0:00:12]} 58. Be3 {[%emt 0:00:26]} Ra2 {[%emt 0:01:00]} 59. Bg1 {[%emt 0:00:51]} Ra4+ {[%emt 0:00:16]} 60. Kg3 {[%emt 0:00:28]} Nxf3 {[%emt 0:00:23]} 61. Rf1 {[%emt 0:00:21]} 1-0